fUST/lending_fUST_20260120
["ID","MTS","AMOUNT","RATE_DAILY","PERIOD"]
[402727175,1768847438583,-500.0,0.00011775,2]
[402727177,1768847438593,-250.93325538,0.00011775,2]
[402727179,1768847438603,-142.39363234,0.00011775,2]
[402727182,1768847438616,-357.60636766,0.00011775,2]
[402727184,1768847438626,-500.0,0.00011775,2]
[402727185,1768847438635,-1011.01763026,0.00012962,2]
[402727188,1768847438646,-4466.50609976,0.00012962,2]
[402727190,1768847438658,-1477.60340245,0.00012962,2]
[402727442,1768847443668,-5000.0,0.00012833,2]
[402727443,1768847443681,-13600.0,0.00012962,2]
[402727470,1768847446583,-1510.33365176,0.00012962,2]
[402727471,1768847446639,-1687.9250288,0.00012962,2]
[402727472,1768847502029,170.62,8.027e-05,2]
[402727473,1768847502825,341.24,8.757e-05,2]
[402727474,1768847503244,511.85,9.487e-05,2]
[402727476,1768847581040,157.59,7.002e-05,2]
[402727477,1768847581436,315.18,7.638e-05,2]
[402727478,1768847581834,472.77,8.275e-05,2]
[402727479,1768847582231,630.36,8.912e-05,2]
[402727480,1768847582630,787.95,9.548e-05,2]
[402727481,1768847658035,255.01,7.612e-05,2]
[402727482,1768847658441,382.51,8.246e-05,2]
[402727483,1768847658840,510.02,8.881e-05,2]
[402727484,1768847659248,464.91,9.515e-05,2]
[402727485,1768847659270,172.61,9.515e-05,2]
[402727486,1768847735554,209.57,8.325e-05,2]
[402727487,1768847735943,314.35,9.018e-05,2]
[402727488,1768847754440,-419.14,9.712e-05,2]
[402727489,1768847754469,-4161.73,9.982e-05,2]
[402727490,1768847760388,-280.43888205,9.847e-05,2]
[402727491,1768847760417,-838.27,9.982e-05,2]
[402727492,1768847760446,-2762.5922359,0.00010083,2]
[402727493,1768847766529,-2237.4077641,0.00010083,2]
[402727494,1768847766558,-523.92,0.00010406,2]
[402727495,1768847811966,190.02,8.317e-05,2]
[402727496,1768847812366,285.03,9.01e-05,2]
[402727497,1768847834616,160.0,0.00027397,120]
[402727498,1768847840052,160.0,0.00027397,120]
[402727499,1768847887827,177.93,8.319e-05,2]
[402727500,1768847888219,266.89,9.013e-05,2]
[402727502,1768847966068,166.61,8.325e-05,2]
[402727503,1768847966463,249.91,9.019e-05,2]
[402727504,1768847968887,5000.0,9.675e-05,2]
[402727505,1768847976767,3663.62,9.675e-05,2]
[402727506,1768847976788,1336.38,9.675e-05,2]
[402727507,1768847992437,5000.0,9.675e-05,2]
[402727508,1768848000176,3663.63,9.675e-05,2]
[402727509,1768848000198,1336.37,9.675e-05,2]
[402727510,1768848015300,5000.0,9.675e-05,2]
[402727511,1768848023061,3399.96224869,9.675e-05,2]
[402727512,1768848038588,263.67775131,9.675e-05,2]
[402727513,1768848038612,4736.32224869,9.675e-05,2]
[402727514,1768848042063,178.63,8.327e-05,2]
[402727515,1768848042482,267.94,9.021e-05,2]
[402727516,1768848062014,4817.11775131,9.675e-05,2]
[402727517,1768848062039,182.88224869,9.675e-05,2]
[402727518,1768848085687,5000.0,9.675e-05,2]
[402727519,1768848108053,4817.12775131,9.675e-05,2]
[402727520,1768848108076,182.87224869,9.675e-05,2]
[402727521,1768848115882,5000.0,9.675e-05,2]
[402727522,1768848117865,218.45,8.351e-05,2]
[402727523,1768848118244,327.68,9.047e-05,2]
[402727524,1768848131537,5000.0,9.675e-05,2]
[402727525,1768848139857,684.9908713,9.675e-05,2]
[402727526,1768848154926,5000.0,9.675e-05,2]
[402727527,1768848177161,5000.0,9.675e-05,2]
[402727528,1768848199395,5000.0,9.675e-05,2]
[402727529,1768848221742,5000.0,9.675e-05,2]
[402727530,1768848243970,5000.0,9.675e-05,2]
[402727531,1768848266222,5000.0,9.675e-05,2]
[402727532,1768848280723,161.1,8.778e-05,2]
[402727533,1768848281118,322.2,9.576e-05,2]
[402727534,1768848290432,5000.0,9.675e-05,2]
[402727535,1768848313202,5000.0,9.675e-05,2]
[402727536,1768848336011,5000.0,9.675e-05,2]
[402727537,1768848358424,5000.0,9.675e-05,2]
[402727538,1768848359157,154.95,8.958e-05,2]
[402727539,1768848380879,5000.0,9.675e-05,2]
[402727540,1768848384020,379.47312093,0.00027397,120]
[402727541,1768848403636,5000.0,9.675e-05,2]
[402727542,1768848426978,5000.0,9.675e-05,2]
[402727543,1768848430990,17781.9835514,9.616e-05,2]
[402727544,1768848437700,152.98,8.765e-05,2]
[402727545,1768848439726,305.96,9.562e-05,2]
[402727546,1768848449884,5000.0,9.675e-05,2]
[402727547,1768848472092,5000.0,9.675e-05,2]
[402727549,1768848494956,5000.0,9.675e-05,2]
[402727550,1768848517199,5000.0,9.675e-05,2]
[402727551,1768848539329,5000.0,9.675e-05,2]
[402727552,1768848561558,620.33171314,9.675e-05,2]
[402727553,1768848605544,294.27,9.538e-05,2]
[402727733,1768848637638,-556.0,9.712e-05,2]
[402727734,1768848637648,-293.56922846,9.713e-05,2]
[402727735,1768848637657,-441.41,0.00010333,2]
[402727736,1768848637667,-154.86134986,0.00010617,2]
[402727737,1768848637676,-151.0,0.00010617,2]
[402727738,1768848637685,-151.0,0.00010617,2]
[402727739,1768848637694,-151.0,0.00010617,2]
[402727740,1768848637703,-300.0,0.00010621,2]
[402727741,1768848637715,-300.0,0.00010621,2]
[402727742,1768848637725,-1200.0,0.00010621,2]
[402727743,1768848637734,-500.0,0.00010622,2]
[402727744,1768848637743,-500.0,0.00010622,2]
[402727745,1768848637752,-500.0,0.00010622,2]
[402727746,1768848637761,-500.0,0.00010622,2]
[402727747,1768848637770,-500.0,0.00010622,2]
[402727748,1768848637780,-500.0,0.00010622,2]
[402727749,1768848637789,-368.87794518,0.00010622,2]
[402727750,1768848637798,-500.0,0.00010622,2]
[402727751,1768848637807,-500.0,0.00010622,2]
[402727752,1768848637817,-500.0,0.00010622,2]
[402727753,1768848637826,-500.0,0.00010622,2]
[402727754,1768848637835,-500.0,0.00010622,2]
[402727755,1768848637844,-500.0,0.00010622,2]
[402727756,1768848637854,-500.0,0.00010622,2]
[402727757,1768848637863,-500.0,0.00010622,2]
[402727758,1768848637872,-500.0,0.00010622,2]
[402727759,1768848637881,-500.0,0.00010622,2]
[402727760,1768848637890,-500.0,0.00010622,2]
[402727761,1768848637899,-447.46501582,0.00010622,2]
[402727762,1768848637908,-236.04491307,0.00010622,2]
[402727763,1768848637918,-500.0,0.00010622,2]
[402727764,1768848637927,-500.0,0.00010622,2]
[402727765,1768848637936,-221.66778847,0.00010622,2]
[402727766,1768848637945,-423.85042581,0.00010622,2]
[402727767,1768848637957,-76.14957419,0.00010622,2]
[402727768,1768848637966,-331.74042581,0.00010622,2]
[402727769,1768848637977,-168.25957419,0.00010622,2]
[402727770,1768848637986,-500.0,0.00010622,2]
[402727771,1768848637995,-500.0,0.00010622,2]
[402727772,1768848638004,-500.0,0.00010622,2]
[402727773,1768848638014,-300.0,0.00010622,2]
[402727774,1768848638023,-500.0,0.00010623,2]
[402727775,1768848638035,-412.90013798,0.00010623,2]
[402727776,1768848638044,-311.78431882,0.00010623,2]
[402727777,1768848638054,-31984.4499608,0.00010624,2]
[402727778,1768848638065,-588.55,0.00011128,2]
[402727779,1768848638075,-159.33365176,0.00011301,2]
[402727780,1768848638085,-151.0,0.00011604,2]
[402727781,1768848638094,-151.0,0.00011604,2]
[402727782,1768848638104,-151.0,0.00011604,2]
[402727783,1768848638114,-151.0,0.00011604,2]
[402727785,1768848638124,-151.0,0.00011604,2]
[402727787,1768848638133,-194.3299807,0.00011604,2]
[402727789,1768848638143,-445.202766,0.00011604,2]
[402727791,1768848638153,-151.0,0.00011604,2]
[402727793,1768848638162,-151.0,0.00011604,2]
[402727795,1768848638171,-151.0,0.00011604,2]
[402727797,1768848638182,-207.73168815,0.00011675,2]
[402727799,1768848638191,-420.0,0.00011676,2]
[402727801,1768848638200,-1236.0,0.00011683,2]
[402727803,1768848638210,-346.41168958,0.00011713,2]
[402727804,1768848638219,-735.69,0.00011923,2]
[402727807,1768848638229,-193.834618,0.00012259,2]
[402727808,1768848638239,-3410.556153,0.00012544,2]
[402727810,1768848638249,-500.0,0.00012681,2]
[402727812,1768848638258,-882.82,0.00012718,2]
[402727814,1768848638268,-500.0,0.00012818,2]
[402727816,1768848638277,-180.0,0.00012835,2]
[402727818,1768848638287,-3171.82767776,0.000129,2]
[402727821,1768848638297,-500.0,0.00012955,2]
[402727822,1768848638306,-189.552,0.00012961,2]
[402727825,1768848638317,-79236.039621,0.0001307,2]
[402727849,1768848639938,-919.35239916,0.0001307,2]
[402727850,1768848639989,-9899.74019503,0.0001307,2]
[402727851,1768848640000,-1200.0,0.0001307,2]
[402727869,1768848642767,-6097.03692679,0.0001307,2]
[402727870,1768848642778,-3518.79288172,0.0001307,2]
[402727874,1768848645844,-4448.16968247,0.0001307,2]
[402727875,1768848645856,-404680.86829283,0.0001307,2]
[402727876,1768848645866,-500.0,0.00013092,2]
[402727877,1768848645875,-500.0,0.00013229,2]
[402727878,1768848645885,-500.0,0.00013273,2]
[402727879,1768848645895,-500.0,0.00013273,2]
[402727880,1768848645904,-162.380719,0.00013286,2]
[402727881,1768848645914,-168.3888056,0.00013286,2]
[402727882,1768848645923,-174.61919141,0.00013286,2]
[402727883,1768848645933,-181.08010149,0.00013286,2]
[402727884,1768848645942,-187.78006525,0.00013286,2]
[402727885,1768848645951,-194.72792766,0.00013286,2]
[402727886,1768848645961,-201.93286099,0.00013286,2]
[402727887,1768848645970,-209.40437684,0.00013286,2]
[402727888,1768848645979,-217.15233878,0.00013286,2]
[402727889,1768848645988,-225.18697532,0.00013286,2]
[402727890,1768848645998,-233.51889341,0.00013286,2]
[402727891,1768848646007,-242.15909246,0.00013286,2]
[402727892,1768848646017,-251.11897888,0.00013286,2]
[402727893,1768848646028,-260.4103811,0.00013286,2]
[402727894,1768848646037,-270.0455652,0.00013286,2]
[402727895,1768848646047,-280.03725112,0.00013286,2]
[402727896,1768848646066,-290.39862941,0.00013286,2]
[402727897,1768848646076,-301.1433787,0.00013286,2]
[402727898,1768848646086,-500.0,0.00013366,2]
[402727899,1768848646097,-461.19749952,0.00013503,2]
[402727900,1768848646106,-1029.96,0.00013513,2]
[402727901,1768848646116,-398.79,0.00013598,2]
[402727902,1768848646126,-264.50551914,0.00013622,2]
[402727903,1768848646137,-1041.66666667,0.00013689,2]
[402727904,1768848646146,-500.0,0.00013698,2]
[402727905,1768848646156,-500.0,0.00013698,2]
[402727906,1768848646165,-500.0,0.00013698,2]
[402727907,1768848646175,-500.0,0.00013698,2]
[402727908,1768848646184,-500.0,0.00013698,2]
[402727909,1768848646194,-500.0,0.00013698,2]
[402727910,1768848646203,-500.0,0.00013698,2]
[402727911,1768848646212,-500.0,0.00013698,2]
[402727912,1768848646222,-500.0,0.00013698,2]
[402727913,1768848646231,-500.0,0.00013698,2]
[402727914,1768848646240,-500.0,0.00013698,2]
[402727915,1768848646250,-500.0,0.00013698,2]
[402727916,1768848646259,-500.0,0.00013698,2]
[402727917,1768848646269,-500.0,0.00013698,2]
[402727918,1768848646278,-500.0,0.00013698,2]
[402727919,1768848646288,-500.0,0.00013698,2]
[402727920,1768848646297,-500.0,0.00013698,2]
[402727921,1768848646306,-500.0,0.00013698,2]
[402727922,1768848646315,-273.27415161,0.00013698,2]
[402727923,1768848646325,-500.0,0.00013698,2]
[402727924,1768848646334,-564.52178477,0.00013698,2]
[402727925,1768848646343,-2114.56,0.00013698,2]
[402727926,1768848646352,-2114.56,0.00013698,2]
[402727927,1768848646361,-2114.56,0.00013698,2]
[402727928,1768848646371,-2114.56,0.00013698,2]
[402727929,1768848646381,-2114.56,0.00013698,2]
[402727930,1768848646390,-2114.56,0.00013698,2]
[402727931,1768848646399,-2114.56,0.00013698,2]
[402727932,1768848646408,-2114.56,0.00013698,2]
[402727933,1768848646418,-2114.56,0.00013698,2]
[402727934,1768848646427,-2114.56,0.00013698,2]
[402727935,1768848646437,-2114.56,0.00013698,2]
[402727936,1768848646446,-2114.56,0.00013698,2]
[402727937,1768848646455,-2114.56,0.00013698,2]
[402727938,1768848646464,-2114.56,0.00013698,2]
[402727939,1768848646473,-2114.56,0.00013698,2]
[402727940,1768848646482,-2114.56,0.00013698,2]
[402727941,1768848646492,-2114.56,0.00013698,2]
[402727942,1768848646502,-2114.56,0.00013698,2]
[402727943,1768848646510,-2114.56,0.00013698,2]
[402727944,1768848646520,-2114.56,0.00013698,2]
[402727945,1768848646529,-2114.56,0.00013698,2]
[402727946,1768848646538,-2114.56,0.00013698,2]
[402727947,1768848646547,-2114.56,0.00013698,2]
[402727948,1768848646556,-2114.5605133,0.00013698,2]
[402727949,1768848646565,-597.191758,0.00013699,2]
[402727950,1768848646575,-23583.26466037,0.00013699,2]
[402727951,1768848682333,267.18,9.583e-05,2]
[402727952,1768848768366,260.38,9.58e-05,2]
[402727953,1768848845887,253.75,9.557e-05,2]
[402727955,1768848925084,247.29,9.625e-05,2]
[402727956,1768849003196,241.0,9.614e-05,2]
[402727957,1768849159200,234.87,9.571e-05,2]
[402727958,1768849238315,228.89,9.595e-05,2]
[402727959,1768849316180,223.06,7.805e-05,2]
[402727960,1768849316977,334.59,8.455e-05,2]
[402727961,1768849317391,446.12,9.105e-05,2]
[402727962,1768849320576,-534.33143105,9.756e-05,2]
[402727963,1768849333490,534.33143105,9.675e-05,2]
[402727964,1768849393139,183.91,7.771e-05,2]
[402727965,1768849393703,275.86,8.418e-05,2]
[402727966,1768849394105,367.82,9.066e-05,2]
[402727967,1768849469657,162.84,7.76e-05,2]
[402727968,1768849470055,244.26,8.406e-05,2]
[402727969,1768849470499,325.69,9.053e-05,2]
[402727970,1768849547495,216.28,8.379e-05,2]
[402727971,1768849547889,288.38,9.023e-05,2]
[402727972,1768849548312,360.47,9.668e-05,2]
[402727973,1768849622894,183.25,8.415e-05,2]
[402727974,1768849623281,244.34,9.063e-05,2]
[402727975,1768849697479,166.93,8.404e-05,2]
[402727976,1768849697879,222.57,9.05e-05,2]
[402727978,1768849778157,158.3,8.394e-05,2]
[402727979,1768849778551,211.07,9.04e-05,2]
[402728275,1768849837789,-263.84,9.685e-05,2]
[402728276,1768849837799,-280.7696101,9.886e-05,2]
[402728277,1768849837807,-316.61,0.00010331,2]
[402728278,1768849837817,-160.25739124,0.00010403,2]
[402728279,1768849837827,-369.38,0.00010977,2]
[402728280,1768849837837,-422.14,0.00011622,2]
[402728281,1768849837846,-331.30813991,0.00011886,2]
[402728282,1768849837857,-474.91,0.00012268,2]
[402728283,1768849837867,-178.0,0.00012274,2]
[402728284,1768849837877,-417.0,0.00012274,2]
[402728285,1768849837887,-527.68,0.00012914,2]
[402728286,1768849837897,-577.86190151,0.00013273,2]
[402728287,1768849837906,-176.33701276,0.00013523,2]
[402728288,1768849837916,-639.03009659,0.00013598,2]
[402728289,1768849837926,-218.24902317,0.00013598,2]
[402728290,1768849837938,-318.76421613,0.00013598,2]
[402728291,1768849837948,-195.828,0.00013598,2]
[402728292,1768849837957,-45629.26110294,0.00013599,2]
[402728319,1768849842875,-2060.28232939,0.00013599,2]
[402728324,1768850245772,511.09603,0.00027397,120]
[402728328,1768850906817,4849.93856895,5e-05,2]
[402728329,1768850906840,150.62621185,5e-05,2]
[402728383,1768851037998,-657.061776,0.00011128,2]
[402728556,1768851043160,-2059.31309798,0.00011128,2]
[402728557,1768851043171,-5000.0,0.0001124,2]
[402728558,1768851043181,-268.5280551,0.00011412,2]
[402728559,1768851043190,-415.11610145,0.00012305,2]
[402728560,1768851043199,-524.62975428,0.00012305,2]
[402728561,1768851043209,-4582.5586211,0.00012306,2]
[402728562,1768851043221,-3377.2436135,0.00012306,2]
[402728563,1768851043233,-256.2,0.00012306,2]
[402728564,1768851043245,-3497.63179258,0.00012306,2]
[402728565,1768851043256,-672.80841133,0.00012306,2]
[402728566,1768851043270,-12251.30830206,0.00012306,2]
[402728569,1768851043280,-417.0,0.00012659,2]
[402728571,1768851043289,-178.0,0.00012659,2]
[402728573,1768851043298,-152.77431622,0.00012898,2]
[402728574,1768851043308,-447.32106761,0.00012898,2]
[402728576,1768851043317,-2767.51907932,0.000129,2]
[402728577,1768851043328,-7.83013872,0.000129,2]
[402728578,1768851043338,-156.663,0.00012955,2]
[402728579,1768851043347,-194.3964825,0.00013066,2]
[402728580,1768851043357,-194.3964825,0.00013066,2]
[402728581,1768851043366,-194.3964825,0.00013066,2]
[402728582,1768851043376,-194.3964825,0.00013066,2]
[402728583,1768851043385,-194.3964825,0.00013066,2]
[402728584,1768851043395,-194.3964825,0.00013066,2]
[402728585,1768851043404,-194.3964825,0.00013066,2]
[402728586,1768851043414,-194.3964825,0.00013066,2]
[402728587,1768851043423,-160.61,0.00013122,2]
[402728588,1768851043432,-500.0,0.00013273,2]
[402728589,1768851043442,-729.0,0.0001338,2]
[402728590,1768851043451,-316.86310501,0.00013412,2]
[402728591,1768851043461,-176.33701277,0.00013425,2]
[402728592,1768851043470,-3474.39082306,0.00013499,2]
[402728595,1768851046113,-859.46617756,0.00013499,2]
[402728604,1768851272663,2008.0,0.00027397,120]
[402728616,1768852063882,20133.336671,0.00027397,120]
[402728641,1768852232105,-352.01140376,0.00010911,2]
[402728867,1768852238255,-2077.549415,0.00010911,2]
[402728868,1768852238267,-2570.43918124,0.00010911,2]
[402728869,1768852238276,-260.4739616,0.00011021,2]
[402728870,1768852238286,-157.28,0.0001146,2]
[402728871,1768852238296,-179.75,0.00012134,2]
[402728872,1768852238305,-202.22,0.00012808,2]
[402728873,1768852238315,-417.0,0.00012814,2]
[402728874,1768852238325,-194.3964825,0.000129,2]
[402728875,1768852238335,-930.799533,0.00012969,2]
[402728876,1768852238344,-194.3964825,0.00012978,2]
[402728877,1768852238354,-194.3964825,0.00012978,2]
[402728878,1768852238363,-307.35927469,0.00013021,2]
[402728879,1768852238374,-300.0,0.00013065,2]
[402728880,1768852238384,-194.3964825,0.00013066,2]
[402728881,1768852238394,-194.3964825,0.00013066,2]
[402728882,1768852238403,-363.405151,0.00013066,2]
[402728883,1768852238413,-194.3964825,0.00013178,2]
[402728884,1768852238422,-194.3964825,0.000134,2]
[402728885,1768852238432,-2428.43056582,0.000134,2]
[402728886,1768852238442,-176.33701277,0.00013425,2]
[402728887,1768852238452,-224.69,0.00013483,2]
[402728888,1768852238461,-486.71874067,0.00013498,2]
[402728889,1768852238472,-211.90352001,0.00013498,2]
[402728890,1768852238485,-156.663,0.00013498,2]
[402728891,1768852238495,-9372.75522005,0.00013499,2]
[402728933,1768852243852,-1192.66666667,0.00013364,2]
[402728966,1768852409234,-175.79,9.676e-05,2]
[402728984,1768852461512,-223.74935127,0.00010116,2]
[402729188,1768852916222,158.76,8.686e-05,2]
[402729189,1768852916614,238.14,9.41e-05,2]
[402729241,1768853001282,163.4,8.68e-05,2]
[402729242,1768853001672,245.1,9.404e-05,2]
[402729278,1768853080916,153.0,8.68e-05,2]
[402729279,1768853081344,229.5,9.403e-05,2]
[402729309,1768853157202,214.9,9.405e-05,2]
[402729332,1768853233463,213.24,9.421e-05,2]
[402729362,1768853308597,205.1,9.401e-05,2]
[402729378,1768853384070,197.26,9.412e-05,2]
[402729409,1768853432419,-2375.43141226,0.00010116,2]
[402729410,1768853432429,-252.64158163,0.00010122,2]
[402729411,1768853432444,-263.02,0.00010136,2]
[402729412,1768853432454,-328.77,0.0001086,2]
[402729413,1768853432464,-394.53,0.00011584,2]
[402729414,1768853432474,-298.11706632,0.00012122,2]
[402729415,1768853432484,-460.28,0.00012308,2]
[402729416,1768853432494,-326.579,0.00012627,2]
[402729417,1768853432504,-417.0,0.00012627,2]
[402729418,1768853432514,-15448.47077743,0.00012674,2]
[402729445,1768853438502,-33218.9313219,0.00012674,2]
[402729447,1768853438515,-51364.79825652,0.00012674,2]
[402729450,1768853438539,-363187.44115939,0.00012674,2]
[402729453,1768853438553,-6266.55930988,0.00012674,2]
[402729640,1768853443533,-1583.31713,0.00012674,2]
[402729641,1768853443639,-3290.00000001,0.00012674,2]
[402729642,1768853443651,-572.66,0.00012674,2]
[402729655,1768853446477,-12850.615977,0.00012674,2]
[402729659,1768853740782,201.64142804,0.00023183,120]
[402729660,1768853748437,156.88,8.651e-05,2]
[402729661,1768853748833,235.32,9.371e-05,2]
[402729662,1768853823961,174.24,8.669e-05,2]
[402729663,1768853824358,261.36,9.391e-05,2]
[402729664,1768853899795,163.15,9.016e-05,2]
[402729665,1768853975679,159.0,9e-05,2]
[402729666,1768854005911,-238.5,9.75e-05,2]
[402729667,1768854005934,-46.14728803,9.75e-05,2]
[402729668,1768854008637,-233.46085125,9.75e-05,2]
[402729669,1768854052069,162.07,8.729e-05,2]
[402729670,1768854052634,243.1,9.456e-05,2]
[402729671,1768854135816,151.75,8.729e-05,2]
[402729672,1768854136204,227.63,9.456e-05,2]
[402729675,1768854216303,213.15,9.448e-05,2]
[402729679,1768854292423,205.01,9.461e-05,2]
[402729680,1768854367944,197.18,9.457e-05,2]
[402729682,1768854443943,189.65,9.473e-05,2]
[402729684,1768854470930,-452.31812647,9.7e-05,6]
[402729685,1768854473068,-436.39762998,9.7e-05,6]
[402729686,1768854476966,-300.0,9.7e-05,6]
[402729687,1768854478511,-168.66691581,9.7e-05,6]
[402729688,1768854480581,-159.23779811,9.7e-05,6]
[402729689,1768854482154,-275.95759361,9.7e-05,6]
[402729692,1768854556416,600000.0,0.00027397,120]
[402729696,1768854599591,216.34,9.352e-05,2]
[402729730,1768854632433,-43.42193602,9.7e-05,6]
[402729732,1768854632443,-241.62640867,9.926e-05,2]
[402729734,1768854632453,-288.46,0.00010072,2]
[402729736,1768854632462,-316.67165531,0.00010791,2]
[402729738,1768854632474,-43.89834469,0.00010791,2]
[402729740,1768854632484,-432.69,0.0001151,2]
[402729741,1768854632493,-285.11916223,0.00011926,2]
[402729742,1768854632503,-505.20458727,0.0001197,2]
[402729744,1768854632512,-504.8,0.0001223,2]
[402729747,1768854632521,-194.3964825,0.000124,2]
[402729750,1768854632531,-153.0,0.000124,2]
[402729753,1768854632540,-194.3964825,0.000124,2]
[402729756,1768854632550,-300.0,0.00012573,2]
[402729759,1768854632560,-513.0,0.00012573,2]
[402729762,1768854632569,-35000.15765413,0.00012574,2]
[402729764,1768854632580,-87322.34558127,0.00012574,2]
[402729766,1768854632591,-9619.91025749,0.00012574,2]
[402729770,1768854632602,-73790.2800116,0.00012574,2]
[402729773,1768854632614,-1400.08699331,0.00012574,2]
[402730087,1768854638744,-85539.03998901,0.00012574,2]
[402730088,1768854638759,-2551.55383668,0.00012574,2]
[402730090,1768854638777,-650.300001,0.00012574,2]
[402730208,1768854642977,-3e-08,0.00012574,2]
[402730229,1768854643581,-3301.1433787,0.00012574,2]
[402730235,1768854646585,-499.80798747,0.00012574,2]
[402730236,1768854646598,-15400.02776583,0.00012574,2]
[402730237,1768854646696,-69442.90017508,0.00012574,2]
[402730238,1768855095833,167.76,9.211e-05,2]
[402730239,1768855168567,161.35,9.223e-05,2]
[402730240,1768855247846,155.19,9.225e-05,2]
[402730242,1768855582284,-396.0,0.00022587,110]
[402730244,1768855656844,-175.0,0.00022337,94]
[402730245,1768855686017,-175.0,0.00022337,94]
[402730246,1768855703527,-46.28710303,0.00022337,94]
[402730247,1768855703614,-46.28710303,0.00022462,102]
[402730248,1768855703631,-101.13869091,0.00022462,102]
[402730250,1768855723922,2339.52847245,0.00022,120]
[402730251,1768855769988,-201.64142807,0.00022462,102]
[402730256,1768855831619,-244.68307511,0.00010022,2]
[402730257,1768855831629,-250.0,0.00010939,2]
[402730258,1768855831639,-505.31692489,0.00011188,2]
[402730259,1768855831660,-3216.49127931,0.00011188,2]
[402730260,1768855831670,-288.72602863,0.00012022,2]
[402730261,1768855831679,-300.0,0.00012469,2]
[402730262,1768855831688,-500.16160092,0.00012471,2]
[402730263,1768855831697,-303.11511317,0.00012471,2]
[402730264,1768855831707,-2697.61117817,0.00012471,2]
[402730265,1768855831716,-1172.45073211,0.00012472,2]
[402730266,1768855831728,-407.03070456,0.00012472,2]
[402730267,1768855831739,-33330.24368295,0.00012472,2]
[402730268,1768855831749,-41517.03859923,0.00012473,2]
[402730269,1768855831760,-98249.26503906,0.00012473,2]
[402730270,1768855831772,-11883.62859141,0.00012473,2]
[402730271,1768855831784,-1139.04789496,0.00012473,2]
[402730272,1768855831795,-3793.46952289,0.00012473,2]
[402730342,1768855838165,-500.0,0.0001247,2]
[402730344,1768855838174,-500.0,0.0001247,2]
[402730346,1768855838183,-500.0,0.0001247,2]
[402730348,1768855838193,-500.0,0.0001247,2]
[402730350,1768855838203,-500.0,0.0001247,2]
[402730352,1768855838213,-481.89993159,0.0001247,2]
[402730433,1768855842860,-18.10006841,0.0001247,2]
[402730434,1768855842870,-500.0,0.0001247,2]
[402730435,1768855842879,-41.89993159,0.0001247,2]
[402730438,1768855845783,-458.10006841,0.0001247,2]
[402730439,1768855845793,-500.0,0.0001247,2]
[402730440,1768855845803,-500.0,0.0001247,2]
[402730441,1768855845812,-500.0,0.0001247,2]
[402730442,1768855845822,-488.92733702,0.0001247,2]
[402730443,1768855845832,-2656.20583158,0.00012473,2]
[402730473,1768857031751,-247.17834252,0.00010102,2]
[402730475,1768857031761,-199.02,0.00010885,2]
[402730477,1768857031772,-248.78,0.00011663,2]
[402730479,1768857031782,-291.67044417,0.00012102,2]
[402730481,1768857031793,-2220.41988134,0.00012341,2]
[402730483,1768857031803,-300.0,0.00012369,2]
[402730485,1768857031812,-300.0,0.00012369,2]
[402730487,1768857031821,-480.0,0.00012369,2]
[402730489,1768857031831,-341.60427827,0.0001237,2]
[402730492,1768857031840,-461.73405836,0.0001237,2]
[402730495,1768857031849,-447.83937243,0.0001237,2]
[402730498,1768857031858,-500.0,0.0001237,2]
[402730500,1768857031867,-172.79344595,0.0001237,2]
[402730502,1768857031876,-50000.0,0.00012371,2]
[402730504,1768857031885,-542545.54149995,0.00012372,2]
[402730506,1768857031896,-373.11910904,0.00012372,2]
[402730597,1768857037865,-63690.98666602,0.00012372,2]